[Event "Titled Tuesday Blitz April 4 Late 2023"]
[White "Bernat, David"]
[Black "Goltsev, Dmitry"]
[WhiteFideId "2099225"]
[BlackFideId "24176710"]
[WhiteElo "2410"]
[BlackElo "2336"]
[Result "0-1"]
[Round "02"]
[TimeControl "180+2"]
[Date "2023.04.04"]
[WhiteClock "0:00:13"]
[BlackClock "0:00:37"]

1. c4 {[%clk 0:03:00]}  Nf6 {[%clk 0:02:59]} 2. Nc3 {[%clk 0:03:00]}  e5 {[%clk 0:03:00]} 3. g3 {[%clk 0:03:01]}  h5 {[%clk 0:02:59]} 4. h3 {[%clk 0:03:00]}  h4 {[%clk 0:03:00]} 5. g4 {[%clk 0:03:00]}  c6 {[%clk 0:03:00]} 6. Nf3 {[%clk 0:03:00]}  e4 {[%clk 0:03:00]} 7. Nd4 {[%clk 0:03:00]}  d5 {[%clk 0:03:00]} 8. cxd5 {[%clk 0:03:01]}  cxd5 {[%clk 0:03:01]} 9. Bg2 {[%clk 0:03:01]}  Nc6 {[%clk 0:03:00]} 10. Nxc6 {[%clk 0:03:01]}  bxc6 {[%clk 0:03:01]} 11. d3 {[%clk 0:03:01]}  exd3 {[%clk 0:03:00]} 12. Qxd3 {[%clk 0:03:02]}  Bc5 {[%clk 0:03:00]} 13. Bg5 {[%clk 0:02:51]}  Qd6 {[%clk 0:02:52]} 14. O-O-O {[%clk 0:02:32]}  Bxf2 {[%clk 0:02:37]} 15. Rhf1 {[%clk 0:02:27]}  Qg3 {[%clk 0:02:19]} 16. Bxf6 {[%clk 0:01:59]}  gxf6 {[%clk 0:02:14]} 17. Bf3 {[%clk 0:01:58]}  O-O {[%clk 0:02:02]} 18. e4 {[%clk 0:01:50]}  d4 {[%clk 0:01:42]} 19. Ne2 {[%clk 0:01:38]}  Be3+ {[%clk 0:01:42]} 20. Kb1 {[%clk 0:01:37]}  Qxh3 {[%clk 0:01:31]} 21. Nxd4 {[%clk 0:01:36]}  Bg5 {[%clk 0:01:03]} 22. Nxc6 {[%clk 0:01:07]}  Be6 {[%clk 0:00:49]} 23. Ne7+ {[%clk 0:00:45]}  Kh8 {[%clk 0:00:48]} 24. Rh1 {[%clk 0:00:44]}  Qg3 {[%clk 0:00:47]} 25. Rdg1 {[%clk 0:00:29]}  Qe5 {[%clk 0:00:45]} 26. Nf5 {[%clk 0:00:26]}  Rfd8 {[%clk 0:00:40]} 27. Qc3 {[%clk 0:00:20]}  Qxc3 {[%clk 0:00:38]} 28. bxc3 {[%clk 0:00:20]}  Rab8+ {[%clk 0:00:38]} 29. Kc2 {[%clk 0:00:19]}  Bxa2 {[%clk 0:00:37]} 30. Nxh4 {[%clk 0:00:14]}  Rd2+ {[%clk 0:00:36]} 31. Kc1 {[%clk 0:00:13]}  Rb1# {[%clk 0:00:37]} 0-1


[Site "https://www.chess.com"]

[Event "Titled Tuesday Blitz April 4 Late 2023"]
[White "Korchmar, Vasiliy"]
[Black "Harriott, Tyrell"]
[WhiteFideId "24131750"]
[BlackFideId "2086484"]
[WhiteElo "2370"]
[BlackElo "2107"]
[Result "0-1"]
[Round "02"]
[TimeControl "180+2"]
[Date "2023.04.04"]
[WhiteClock "0:00:05"]
[BlackClock "0:01:12"]

1. e4 {[%clk 0:03:00]}  e6 {[%clk 0:03:00]} 2. d4 {[%clk 0:03:00]}  d5 {[%clk 0:03:00]} 3. e5 {[%clk 0:03:01]}  c5 {[%clk 0:03:00]} 4. c3 {[%clk 0:03:01]}  Nc6 {[%clk 0:03:00]} 5. Nf3 {[%clk 0:03:01]}  f5 {[%clk 0:03:00]} 6. exf6 {[%clk 0:02:53]}  Nxf6 {[%clk 0:03:00]} 7. Bd3 {[%clk 0:02:53]}  Bd6 {[%clk 0:03:00]} 8. O-O {[%clk 0:02:52]}  O-O {[%clk 0:03:00]} 9. Re1 {[%clk 0:02:41]}  Ng4 {[%clk 0:02:58]} 10. h3 {[%clk 0:02:33]}  Nxf2 {[%clk 0:02:57]} 11. Kxf2 {[%clk 0:02:32]}  Qh4+ {[%clk 0:02:56]} 12. Kf1 {[%clk 0:02:18]}  e5 {[%clk 0:02:33]} 13. dxe5 {[%clk 0:02:12]}  Nxe5 {[%clk 0:02:31]} 14. Be2 {[%clk 0:02:11]}  d4 {[%clk 0:02:13]} 15. cxd4 {[%clk 0:02:01]}  cxd4 {[%clk 0:02:11]} 16. Nd2 {[%clk 0:00:39]}  Bxh3 {[%clk 0:01:48]} 17. Kg1 {[%clk 0:00:13]}  Qg4 {[%clk 0:01:30]} 18. Bf1 {[%clk 0:00:13]}  Qg3 {[%clk 0:01:18]} 19. Nxe5 {[%clk 0:00:05]}  Rxf1+ {[%clk 0:01:12]} 0-1


[Site "https://www.chess.com"]

[Event "Titled Tuesday Blitz April 4 Late 2023"]
[White "Kilic, Eray"]
[Black "Gatterer, Florian"]
[WhiteFideId "44517173"]
[BlackFideId "811688"]
[WhiteElo "2328"]
[BlackElo "2221"]
[Result "1-0"]
[Round "02"]
[TimeControl "180+2"]
[Date "2023.04.04"]
[WhiteClock "0:01:38"]
[BlackClock "0:00:01"]

1. e4 {[%clk 0:03:00]}  c5 {[%clk 0:03:00]} 2. Nf3 {[%clk 0:03:00]}  e6 {[%clk 0:03:00]} 3. c3 {[%clk 0:03:00]}  d5 {[%clk 0:03:00]} 4. e5 {[%clk 0:03:00]}  d4 {[%clk 0:03:00]} 5. Bb5+ {[%clk 0:03:00]}  Bd7 {[%clk 0:02:59]} 6. Bxd7+ {[%clk 0:03:00]}  Qxd7 {[%clk 0:03:00]} 7. O-O {[%clk 0:03:01]}  Ne7 {[%clk 0:02:55]} 8. cxd4 {[%clk 0:03:00]}  cxd4 {[%clk 0:02:55]} 9. d3 {[%clk 0:03:01]}  Nf5 {[%clk 0:02:48]} 10. Nbd2 {[%clk 0:03:00]}  Be7 {[%clk 0:02:47]} 11. Ne4 {[%clk 0:03:00]}  O-O {[%clk 0:02:38]} 12. g4 {[%clk 0:02:56]}  Nh4 {[%clk 0:02:34]} 13. Nxh4 {[%clk 0:02:54]}  Bxh4 {[%clk 0:02:33]} 14. g5 {[%clk 0:02:55]}  h6 {[%clk 0:02:10]} 15. Qh5 {[%clk 0:02:38]}  hxg5 {[%clk 0:01:40]} 16. Bxg5 {[%clk 0:02:33]}  f5 {[%clk 0:01:32]} 17. exf6 {[%clk 0:02:28]}  Bxg5 {[%clk 0:01:23]} 18. Nxg5 {[%clk 0:02:29]}  gxf6 {[%clk 0:01:23]} 19. Qg6+ {[%clk 0:02:29]}  Kh8 {[%clk 0:01:16]} 20. Qh6+ {[%clk 0:02:29]}  Kg8 {[%clk 0:01:13]} 21. Rae1 {[%clk 0:02:21]}  fxg5 {[%clk 0:00:57]} 22. Rxe6 {[%clk 0:02:20]}  Rf7 {[%clk 0:00:58]} 23. Rfe1 {[%clk 0:01:58]}  Nc6 {[%clk 0:00:45]} 24. Rg6+ {[%clk 0:01:58]}  Rg7 {[%clk 0:00:41]} 25. Ree6 {[%clk 0:01:58]}  Ne5 {[%clk 0:00:17]} 26. Rxg7+ {[%clk 0:01:57]}  Qxg7 {[%clk 0:00:15]} 27. Qxg7+ {[%clk 0:01:58]}  Kxg7 {[%clk 0:00:15]} 28. Rxe5 {[%clk 0:01:59]}  Kf6 {[%clk 0:00:13]} 29. Rd5 {[%clk 0:01:59]}  Rc8 {[%clk 0:00:12]} 30. Rxd4 {[%clk 0:01:59]}  Rc2 {[%clk 0:00:11]} 31. Rb4 {[%clk 0:01:59]}  b6 {[%clk 0:00:10]} 32. Kg2 {[%clk 0:01:59]}  Rd2 {[%clk 0:00:11]} 33. d4 {[%clk 0:01:59]}  Kf5 {[%clk 0:00:11]} 34. Kf3 {[%clk 0:01:57]}  g4+ {[%clk 0:00:10]} 35. Ke3 {[%clk 0:01:57]}  Rc2 {[%clk 0:00:10]} 36. Rb5+ {[%clk 0:01:58]}  Kf6 {[%clk 0:00:10]} 37. a3 {[%clk 0:01:57]}  Rc1 {[%clk 0:00:10]} 38. Kf4 {[%clk 0:01:57]}  Rf1 {[%clk 0:00:08]} 39. Rf5+ {[%clk 0:01:54]}  Ke6 {[%clk 0:00:08]} 40. Kxg4 {[%clk 0:01:50]}  Rg1+ {[%clk 0:00:06]} 41. Kf4 {[%clk 0:01:50]}  Rg2 {[%clk 0:00:07]} 42. Re5+ {[%clk 0:01:48]}  Kd6 {[%clk 0:00:07]} 43. Ke3 {[%clk 0:01:42]}  Rxh2 {[%clk 0:00:06]} 44. Rg5 {[%clk 0:01:42]}  Rh6 {[%clk 0:00:05]} 45. f4 {[%clk 0:01:39]}  Re6+ {[%clk 0:00:03]} 46. Re5 {[%clk 0:01:39]}  Rh6 {[%clk 0:00:03]} 47. Ke4 {[%clk 0:01:39]}  Rh2 {[%clk 0:00:01]} 48. Rd5+ {[%clk 0:01:38]} 1-0


[Site "https://www.chess.com"]

[Event "Titled Tuesday Blitz April 4 Late 2023"]
[White "Manzone, Alessandro"]
[Black "Goncalves, Davi Sulzbacher"]
[WhiteFideId "112488"]
[BlackFideId "2154510"]
[WhiteElo "2255"]
[BlackElo "2182"]
[Result "0-1"]
[Round "02"]
[TimeControl "180+2"]
[Date "2023.04.04"]
[WhiteClock "0:00:18"]
[BlackClock "0:00:12"]

1. d4 {[%clk 0:03:00]}  Nf6 {[%clk 0:02:59]} 2. c4 {[%clk 0:03:01]}  g6 {[%clk 0:02:57]} 3. Nf3 {[%clk 0:03:00]}  Bg7 {[%clk 0:02:57]} 4. g3 {[%clk 0:03:00]}  O-O {[%clk 0:02:57]} 5. Bg2 {[%clk 0:03:00]}  d5 {[%clk 0:02:57]} 6. O-O {[%clk 0:02:59]}  c6 {[%clk 0:02:55]} 7. Nc3 {[%clk 0:02:56]}  dxc4 {[%clk 0:02:46]} 8. e4 {[%clk 0:02:56]}  b5 {[%clk 0:02:43]} 9. Qe2 {[%clk 0:02:56]}  Bb7 {[%clk 0:02:30]} 10. Rd1 {[%clk 0:02:53]}  Nbd7 {[%clk 0:02:25]} 11. Bf4 {[%clk 0:02:34]}  Qb6 {[%clk 0:02:17]} 12. b3 {[%clk 0:02:18]}  Rac8 {[%clk 0:01:59]} 13. bxc4 {[%clk 0:02:17]}  b4 {[%clk 0:01:58]} 14. Na4 {[%clk 0:02:00]}  Qa5 {[%clk 0:01:55]} 15. Nb2 {[%clk 0:01:59]}  c5 {[%clk 0:01:49]} 16. d5 {[%clk 0:01:51]}  Nh5 {[%clk 0:01:45]} 17. e5 {[%clk 0:01:47]}  Nxf4 {[%clk 0:01:43]} 18. gxf4 {[%clk 0:01:48]}  Nb6 {[%clk 0:01:38]} 19. Kh1 {[%clk 0:01:40]}  Ba6 {[%clk 0:01:34]} 20. Rg1 {[%clk 0:01:23]}  Nxd5 {[%clk 0:01:30]} 21. Qd2 {[%clk 0:01:14]}  Nb6 {[%clk 0:01:24]} 22. Rac1 {[%clk 0:01:11]}  Rfd8 {[%clk 0:01:16]} 23. Qe3 {[%clk 0:01:06]}  Qxa2 {[%clk 0:01:08]} 24. Ra1 {[%clk 0:01:06]}  Qxb2 {[%clk 0:01:04]} 25. Rxa6 {[%clk 0:01:06]}  Nxc4 {[%clk 0:01:03]} 26. Qe4 {[%clk 0:01:04]}  Nd2 {[%clk 0:00:46]} 27. Nxd2 {[%clk 0:01:01]}  Rxd2 {[%clk 0:00:46]} 28. Rxa7 {[%clk 0:00:54]}  e6 {[%clk 0:00:42]} 29. Rxf7 {[%clk 0:00:42]}  Rf8 {[%clk 0:00:31]} 30. Rxf8+ {[%clk 0:00:40]}  Bxf8 {[%clk 0:00:31]} 31. Qc6 {[%clk 0:00:29]}  Qa2 {[%clk 0:00:31]} 32. Bh3 {[%clk 0:00:23]}  Qd5+ {[%clk 0:00:24]} 33. Qxd5 {[%clk 0:00:24]}  exd5 {[%clk 0:00:25]} 34. Be6+ {[%clk 0:00:24]}  Kg7 {[%clk 0:00:24]} 35. f5 {[%clk 0:00:25]}  Be7 {[%clk 0:00:23]} 36. f6+ {[%clk 0:00:23]}  Bxf6 {[%clk 0:00:23]} 37. exf6+ {[%clk 0:00:24]}  Kxf6 {[%clk 0:00:24]} 38. Bg8 {[%clk 0:00:23]}  b3 {[%clk 0:00:19]} 39. Bxh7 {[%clk 0:00:23]}  b2 {[%clk 0:00:15]} 40. Bxg6 {[%clk 0:00:23]}  c4 {[%clk 0:00:15]} 41. Bh7 {[%clk 0:00:21]}  c3 {[%clk 0:00:15]} 42. Rg6+ {[%clk 0:00:21]}  Ke5 {[%clk 0:00:15]} 43. Rb6 {[%clk 0:00:21]}  Rxf2 {[%clk 0:00:14]} 44. Kg1 {[%clk 0:00:21]}  Rf7 {[%clk 0:00:13]} 45. Bc2 {[%clk 0:00:20]}  d4 {[%clk 0:00:13]} 46. Rb5+ {[%clk 0:00:18]}  Kf4 {[%clk 0:00:13]} 47. Rb7 {[%clk 0:00:18]}  Rxb7 {[%clk 0:00:12]} 0-1


[Site "https://www.chess.com"]

[Event "Titled Tuesday Blitz April 4 Late 2023"]
[White "Veiga, Jose Francisco R P Neves"]
[Black "Gerbelli Neto, Eduardo"]
[WhiteFideId "1930087"]
[BlackFideId "2103281"]
[WhiteElo "2320"]
[BlackElo "2178"]
[Result "0-1"]
[Round "02"]
[TimeControl "180+2"]
[Date "2023.04.04"]
[WhiteClock "0:01:07"]
[BlackClock "0:01:00"]

1. e4 {[%clk 0:03:00]}  e5 {[%clk 0:02:59]} 2. Nf3 {[%clk 0:03:00]}  Nc6 {[%clk 0:02:59]} 3. Bb5 {[%clk 0:03:00]}  a6 {[%clk 0:02:59]} 4. Ba4 {[%clk 0:03:00]}  d6 {[%clk 0:02:59]} 5. O-O {[%clk 0:02:59]}  Bg4 {[%clk 0:02:59]} 6. c3 {[%clk 0:03:00]}  Qf6 {[%clk 0:02:58]} 7. d3 {[%clk 0:02:58]}  Ne7 {[%clk 0:02:57]} 8. Nbd2 {[%clk 0:02:58]}  Ng6 {[%clk 0:02:57]} 9. h3 {[%clk 0:02:51]}  h5 {[%clk 0:02:57]} 10. Qe1 {[%clk 0:02:41]}  Nf4 {[%clk 0:02:56]} 11. Qe3 {[%clk 0:02:37]}  Bxh3 {[%clk 0:02:55]} 12. Nh4 {[%clk 0:02:13]}  Qxh4 {[%clk 0:02:42]} 13. g3 {[%clk 0:02:13]}  Qg5 {[%clk 0:02:26]} 14. Nf3 {[%clk 0:02:13]}  Qf6 {[%clk 0:02:18]} 15. gxf4 {[%clk 0:02:06]}  Qg6+ {[%clk 0:01:54]} 16. Ng5 {[%clk 0:02:06]}  Bxf1 {[%clk 0:01:54]} 17. f5 {[%clk 0:02:03]}  Qh6 {[%clk 0:01:42]} 18. Kxf1 {[%clk 0:02:02]}  h4 {[%clk 0:01:34]} 19. d4 {[%clk 0:01:51]}  Be7 {[%clk 0:01:29]} 20. Bb3 {[%clk 0:01:35]}  Bxg5 {[%clk 0:01:25]} 21. Qxg5 {[%clk 0:01:32]}  Qxg5 {[%clk 0:01:26]} 22. Bxg5 {[%clk 0:01:33]}  exd4 {[%clk 0:01:25]} 23. cxd4 {[%clk 0:01:31]}  Nxd4 {[%clk 0:01:25]} 24. Bd1 {[%clk 0:01:27]}  f6 {[%clk 0:01:20]} 25. Be3 {[%clk 0:01:26]}  Nc6 {[%clk 0:01:21]} 26. Kg2 {[%clk 0:01:24]}  h3+ {[%clk 0:01:20]} 27. Kh2 {[%clk 0:01:24]}  Ne5 {[%clk 0:01:20]} 28. f4 {[%clk 0:01:22]}  Nc4 {[%clk 0:01:17]} 29. Bc1 {[%clk 0:01:21]}  d5 {[%clk 0:01:09]} 30. Bc2 {[%clk 0:01:10]}  dxe4 {[%clk 0:01:05]} 31. Bxe4 {[%clk 0:01:11]}  Nd6 {[%clk 0:01:05]} 32. Bc2 {[%clk 0:01:10]}  O-O-O {[%clk 0:01:05]} 33. Be3 {[%clk 0:01:09]}  Rde8 {[%clk 0:01:05]} 34. Re1 {[%clk 0:01:08]}  Nc4 {[%clk 0:01:03]} 35. Bf2 {[%clk 0:01:08]}  Rxe1 {[%clk 0:01:01]} 36. Bxe1 {[%clk 0:01:09]}  Re8 {[%clk 0:01:00]} 37. Bd2 {[%clk 0:01:07]}  Re2+ {[%clk 0:01:00]} 0-1


[Site "https://www.chess.com"]

[Event "Titled Tuesday Blitz April 4 Late 2023"]
[White "Celestino, Rafael Teixeira"]
[Black "Cuenca Jimenez, Jose Fernando"]
[WhiteFideId "2108925"]
[BlackFideId "2255570"]
[WhiteElo "2388"]
[BlackElo "2429"]
[Result "1-0"]
[Round "02"]
[TimeControl "180+2"]
[Date "2023.04.04"]
[WhiteClock "0:00:03"]
[BlackClock "0:00:01"]

1. e4 {[%clk 0:03:00]}  d6 {[%clk 0:02:54]} 2. d4 {[%clk 0:02:59]}  Nf6 {[%clk 0:02:55]} 3. Nc3 {[%clk 0:02:59]}  e5 {[%clk 0:02:55]} 4. Nf3 {[%clk 0:02:59]}  Nbd7 {[%clk 0:02:55]} 5. Bg5 {[%clk 0:02:58]}  Be7 {[%clk 0:02:55]} 6. Qd2 {[%clk 0:02:58]}  O-O {[%clk 0:02:54]} 7. Be2 {[%clk 0:02:58]}  c6 {[%clk 0:02:54]} 8. O-O {[%clk 0:02:58]}  b5 {[%clk 0:02:54]} 9. a3 {[%clk 0:02:57]}  a6 {[%clk 0:02:41]} 10. Rad1 {[%clk 0:02:56]}  Qc7 {[%clk 0:02:41]} 11. Rfe1 {[%clk 0:02:56]}  Re8 {[%clk 0:02:34]} 12. Nh4 {[%clk 0:02:55]}  Nf8 {[%clk 0:02:12]} 13. Nf5 {[%clk 0:02:51]}  Bxf5 {[%clk 0:02:10]} 14. exf5 {[%clk 0:02:52]}  e4 {[%clk 0:01:56]} 15. Qf4 {[%clk 0:02:20]}  Nd5 {[%clk 0:01:25]} 16. Nxd5 {[%clk 0:02:05]}  cxd5 {[%clk 0:01:26]} 17. c3 {[%clk 0:01:46]}  Bxg5 {[%clk 0:01:15]} 18. Qxg5 {[%clk 0:01:47]}  Nd7 {[%clk 0:01:14]} 19. Bf1 {[%clk 0:01:16]}  Rab8 {[%clk 0:01:11]} 20. Re3 {[%clk 0:01:16]}  f6 {[%clk 0:01:01]} 21. Qh5 {[%clk 0:01:16]}  Nf8 {[%clk 0:00:58]} 22. Rde1 {[%clk 0:01:14]}  Qf7 {[%clk 0:00:50]} 23. Qg4 {[%clk 0:01:05]}  Nd7 {[%clk 0:00:40]} 24. Qg3 {[%clk 0:01:00]}  Qf8 {[%clk 0:00:23]} 25. f3 {[%clk 0:00:53]}  exf3 {[%clk 0:00:23]} 26. Qxf3 {[%clk 0:00:48]}  Nb6 {[%clk 0:00:21]} 27. Qf4 {[%clk 0:00:36]}  Rxe3 {[%clk 0:00:17]} 28. Rxe3 {[%clk 0:00:36]}  Rd8 {[%clk 0:00:12]} 29. Re6 {[%clk 0:00:35]}  h6 {[%clk 0:00:09]} 30. Be2 {[%clk 0:00:30]}  Na4 {[%clk 0:00:08]} 31. Bf3 {[%clk 0:00:21]}  Nxb2 {[%clk 0:00:06]} 32. Bxd5 {[%clk 0:00:21]}  Kh8 {[%clk 0:00:07]} 33. Qg3 {[%clk 0:00:19]}  Nc4 {[%clk 0:00:05]} 34. Qg6 {[%clk 0:00:14]}  Nxa3 {[%clk 0:00:05]} 35. Bc6 {[%clk 0:00:14]}  Nc4 {[%clk 0:00:03]} 36. h4 {[%clk 0:00:11]}  Rc8 {[%clk 0:00:04]} 37. Bd7 {[%clk 0:00:11]}  Rd8 {[%clk 0:00:04]} 38. h5 {[%clk 0:00:10]}  a5 {[%clk 0:00:03]} 39. Bxb5 {[%clk 0:00:10]}  Nb6 {[%clk 0:00:04]} 40. c4 {[%clk 0:00:09]}  a4 {[%clk 0:00:04]} 41. c5 {[%clk 0:00:10]}  Nd5 {[%clk 0:00:04]} 42. Qg4 {[%clk 0:00:07]}  Nc7 {[%clk 0:00:04]} 43. Bc4 {[%clk 0:00:05]}  dxc5 {[%clk 0:00:04]} 44. Rc6 {[%clk 0:00:04]}  Ne8 {[%clk 0:00:02]} 45. dxc5 {[%clk 0:00:04]}  Qe7 {[%clk 0:00:02]} 46. Re6 {[%clk 0:00:04]}  Qc7 {[%clk 0:00:02]} 47. Kh1 {[%clk 0:00:03]}  Qd7 {[%clk 0:00:02]} 48. c6 {[%clk 0:00:02]}  Qc7 {[%clk 0:00:02]} 49. Qg6 {[%clk 0:00:01]}  Nd6 {[%clk 0:00:03]} 50. Re7 {[%clk 0:00:02]}  Qxe7 {[%clk 0:00:01]} 51. Be6 {[%clk 0:00:03]} 1-0


[Site "https://www.chess.com"]

[Event "Titled Tuesday Blitz April 4 Late 2023"]
[White "Hamitevici, Vladimir"]
[Black "Perez Rodriguez, Jennifer"]
[WhiteFideId "13902393"]
[BlackFideId "3507831"]
[WhiteElo "2401"]
[BlackElo "2116"]
[Result "1/2-1/2"]
[Round "02"]
[TimeControl "180+2"]
[Date "2023.04.04"]
[WhiteClock "0:00:04"]
[BlackClock "0:00:11"]

1. c4 {[%clk 0:03:00]}  e6 {[%clk 0:02:57]} 2. d4 {[%clk 0:02:59]}  d5 {[%clk 0:02:57]} 3. Nf3 {[%clk 0:02:59]}  c6 {[%clk 0:02:57]} 4. Qc2 {[%clk 0:02:56]}  Nf6 {[%clk 0:02:56]} 5. g3 {[%clk 0:02:56]}  Nbd7 {[%clk 0:02:54]} 6. Bg2 {[%clk 0:02:56]}  g6 {[%clk 0:02:54]} 7. O-O {[%clk 0:02:56]}  Bg7 {[%clk 0:02:54]} 8. b3 {[%clk 0:02:50]}  O-O {[%clk 0:02:55]} 9. Nc3 {[%clk 0:02:50]}  b6 {[%clk 0:02:38]} 10. Ba3 {[%clk 0:02:47]}  Re8 {[%clk 0:02:37]} 11. Nd2 {[%clk 0:02:30]}  Bb7 {[%clk 0:02:30]} 12. e4 {[%clk 0:02:30]}  dxe4 {[%clk 0:02:26]} 13. Ndxe4 {[%clk 0:02:29]}  Nxe4 {[%clk 0:02:26]} 14. Nxe4 {[%clk 0:02:30]}  Bxd4 {[%clk 0:02:26]} 15. Rad1 {[%clk 0:02:30]}  c5 {[%clk 0:02:25]} 16. Nd6 {[%clk 0:02:20]}  Bxg2 {[%clk 0:02:24]} 17. Kxg2 {[%clk 0:02:21]}  Re7 {[%clk 0:02:19]} 18. Nb5 {[%clk 0:02:17]}  e5 {[%clk 0:02:17]} 19. Nxd4 {[%clk 0:02:13]}  exd4 {[%clk 0:02:15]} 20. Bc1 {[%clk 0:02:10]}  Qc7 {[%clk 0:02:13]} 21. Bf4 {[%clk 0:02:08]}  Qc6+ {[%clk 0:02:12]} 22. Kg1 {[%clk 0:02:08]}  Ne5 {[%clk 0:02:11]} 23. Bxe5 {[%clk 0:02:05]}  Rxe5 {[%clk 0:02:10]} 24. Qd2 {[%clk 0:02:03]}  Rae8 {[%clk 0:02:09]} 25. Qf4 {[%clk 0:02:02]}  Kg7 {[%clk 0:02:06]} 26. h4 {[%clk 0:02:01]}  h5 {[%clk 0:02:06]} 27. b4 {[%clk 0:01:56]}  Re4 {[%clk 0:02:05]} 28. Qd2 {[%clk 0:01:55]}  Qe6 {[%clk 0:02:00]} 29. bxc5 {[%clk 0:01:54]}  bxc5 {[%clk 0:01:58]} 30. Qa5 {[%clk 0:01:52]}  Qxc4 {[%clk 0:01:40]} 31. Rc1 {[%clk 0:01:52]}  Qe2 {[%clk 0:01:34]} 32. Rxc5 {[%clk 0:01:47]}  d3 {[%clk 0:01:33]} 33. Qc3+ {[%clk 0:01:47]}  Kg8 {[%clk 0:01:31]} 34. Rd5 {[%clk 0:01:46]}  Rxh4 {[%clk 0:01:20]} 35. Qxd3 {[%clk 0:01:41]}  Qxd3 {[%clk 0:01:16]} 36. Rxd3 {[%clk 0:01:42]}  Ra4 {[%clk 0:01:15]} 37. a3 {[%clk 0:01:40]}  Re6 {[%clk 0:01:10]} 38. Rc1 {[%clk 0:01:38]}  Re2 {[%clk 0:01:06]} 39. Rc8+ {[%clk 0:01:29]}  Kg7 {[%clk 0:01:05]} 40. Rc7 {[%clk 0:01:27]}  Ra5 {[%clk 0:01:02]} 41. Rf3 {[%clk 0:01:23]}  Rf5 {[%clk 0:00:51]} 42. Rxf5 {[%clk 0:01:22]}  gxf5 {[%clk 0:00:51]} 43. Rxa7 {[%clk 0:01:23]}  Kg6 {[%clk 0:00:52]} 44. Ra4 {[%clk 0:01:20]}  Kf6 {[%clk 0:00:49]} 45. Rf4 {[%clk 0:01:16]}  Ke5 {[%clk 0:00:38]} 46. Kg2 {[%clk 0:01:13]}  Ra2 {[%clk 0:00:38]} 47. a4 {[%clk 0:01:13]}  Ra3 {[%clk 0:00:37]} 48. Kh3 {[%clk 0:01:13]}  Kf6 {[%clk 0:00:34]} 49. Kg2 {[%clk 0:01:09]}  Ke5 {[%clk 0:00:32]} 50. Rb4 {[%clk 0:01:09]}  Kf6 {[%clk 0:00:31]} 51. f4 {[%clk 0:01:05]}  Kg6 {[%clk 0:00:26]} 52. Kh3 {[%clk 0:00:58]}  Ra1 {[%clk 0:00:25]} 53. Rc4 {[%clk 0:00:50]}  Rh1+ {[%clk 0:00:24]} 54. Kg2 {[%clk 0:00:50]}  Ra1 {[%clk 0:00:25]} 55. Rc6+ {[%clk 0:00:49]}  f6 {[%clk 0:00:24]} 56. Ra6 {[%clk 0:00:48]}  h4 {[%clk 0:00:22]} 57. gxh4 {[%clk 0:00:43]}  Kh5 {[%clk 0:00:23]} 58. Rxf6 {[%clk 0:00:38]}  Kg4 {[%clk 0:00:23]} 59. Rg6+ {[%clk 0:00:34]}  Kxf4 {[%clk 0:00:20]} 60. h5 {[%clk 0:00:34]}  Ra2+ {[%clk 0:00:20]} 61. Kh3 {[%clk 0:00:31]}  Ra3+ {[%clk 0:00:20]} 62. Kh4 {[%clk 0:00:27]}  Rxa4 {[%clk 0:00:20]} 63. h6 {[%clk 0:00:27]}  Ra1 {[%clk 0:00:20]} 64. Kh3 {[%clk 0:00:19]}  Rh1+ {[%clk 0:00:19]} 65. Kg2 {[%clk 0:00:19]}  Rh5 {[%clk 0:00:19]} 66. Kf2 {[%clk 0:00:15]}  Ke4 {[%clk 0:00:19]} 67. Kg3 {[%clk 0:00:14]}  f4+ {[%clk 0:00:16]} 68. Kg4 {[%clk 0:00:14]}  Rh1 {[%clk 0:00:16]} 69. Re6+ {[%clk 0:00:14]}  Kd5 {[%clk 0:00:16]} 70. Ra6 {[%clk 0:00:14]}  Ke4 {[%clk 0:00:14]} 71. Ra4+ {[%clk 0:00:13]}  Ke5 {[%clk 0:00:15]} 72. Ra5+ {[%clk 0:00:14]}  Ke4 {[%clk 0:00:15]} 73. Ra6 {[%clk 0:00:03]}  f3 {[%clk 0:00:12]} 74. Re6+ {[%clk 0:00:02]}  Kd5 {[%clk 0:00:11]} 75. Rf6 {[%clk 0:00:03]}  Ke4 {[%clk 0:00:11]} 76. Rf4+ {[%clk 0:00:03]}  Ke5 {[%clk 0:00:10]} 77. Rxf3 {[%clk 0:00:03]}  Rxh6 {[%clk 0:00:10]} 78. Rf5+ {[%clk 0:00:03]}  Ke6 {[%clk 0:00:10]} 79. Rg5 {[%clk 0:00:03]}  Rh1 {[%clk 0:00:10]} 80. Rh5 {[%clk 0:00:03]}  Rg1+ {[%clk 0:00:10]} 81. Kf3 {[%clk 0:00:03]}  Rf1+ {[%clk 0:00:09]} 82. Kg2 {[%clk 0:00:04]}  Rf6 {[%clk 0:00:09]} 83. Rg5 {[%clk 0:00:04]}  Rf5 {[%clk 0:00:10]} 84. Rxf5 {[%clk 0:00:04]}  Kxf5 {[%clk 0:00:11]} 1/2-1/2


[Site "https://www.chess.com"]

[Event "Titled Tuesday Blitz April 4 Late 2023"]
[White "Gold_Ocean"]
[Black "Skaric, Djuro"]
[BlackFideId "934569"]
[WhiteElo "2616"]
[BlackElo "2282"]
[Result "0-1"]
[Round "02"]
[TimeControl "180+2"]
[Date "2023.04.04"]
[WhiteClock "0:02:00"]
[BlackClock "0:01:27"]

1. Nf3 {[%clk 0:03:00]}  d6 {[%clk 0:03:00]} 2. b3 {[%clk 0:03:00]}  Nf6 {[%clk 0:03:00]} 3. Bb2 {[%clk 0:03:01]}  Nbd7 {[%clk 0:02:59]} 4. g3 {[%clk 0:03:01]}  g6 {[%clk 0:03:00]} 5. Bg2 {[%clk 0:03:01]}  Bg7 {[%clk 0:03:00]} 6. O-O {[%clk 0:03:02]}  O-O {[%clk 0:03:01]} 7. d3 {[%clk 0:03:03]}  e5 {[%clk 0:03:01]} 8. e4 {[%clk 0:03:03]}  c5 {[%clk 0:03:01]} 9. Nbd2 {[%clk 0:03:04]}  b5 {[%clk 0:03:00]} 10. Qe2 {[%clk 0:03:04]}  Bb7 {[%clk 0:02:59]} 11. h3 {[%clk 0:03:04]}  Rb8 {[%clk 0:02:59]} 12. Rfe1 {[%clk 0:03:04]}  a5 {[%clk 0:02:59]} 13. Nf1 {[%clk 0:03:04]}  Nb6 {[%clk 0:02:57]} 14. Rad1 {[%clk 0:03:04]}  a4 {[%clk 0:02:57]} 15. Ne3 {[%clk 0:03:04]}  b4 {[%clk 0:02:58]} 16. Nh2 {[%clk 0:03:03]}  a3 {[%clk 0:02:57]} 17. Bc1 {[%clk 0:03:03]}  Ne8 {[%clk 0:02:56]} 18. Nc4 {[%clk 0:02:58]}  Kh8 {[%clk 0:02:51]} 19. f4 {[%clk 0:02:58]}  Nd7 {[%clk 0:02:51]} 20. Rf1 {[%clk 0:02:57]}  f5 {[%clk 0:02:50]} 21. Nf3 {[%clk 0:02:51]}  exf4 {[%clk 0:02:49]} 22. Bxf4 {[%clk 0:02:50]}  fxe4 {[%clk 0:02:47]} 23. dxe4 {[%clk 0:02:51]}  Ndf6 {[%clk 0:02:46]} 24. Nxd6 {[%clk 0:02:49]}  Nxd6 {[%clk 0:02:42]} 25. Bxd6 {[%clk 0:02:49]}  Nxe4 {[%clk 0:02:41]} 26. Bxf8 {[%clk 0:02:39]}  Qxf8 {[%clk 0:02:38]} 27. Ng5 {[%clk 0:02:32]}  Qe7 {[%clk 0:01:59]} 28. Nxe4 {[%clk 0:02:27]}  Re8 {[%clk 0:01:58]} 29. Rde1 {[%clk 0:02:20]}  Bd4+ {[%clk 0:01:55]} 30. Kh1 {[%clk 0:02:20]}  Qd7 {[%clk 0:01:46]} 31. Qg4 {[%clk 0:02:14]}  Qe7 {[%clk 0:01:39]} 32. Qg5 {[%clk 0:02:07]}  Qd7 {[%clk 0:01:28]} 33. Nf6 {[%clk 0:02:00]}  Qxh3# {[%clk 0:01:27]} 0-1


[Site "https://www.chess.com"]